[Event "EIRCC 2019"]
[Site "Tallinn"]
[Date "2019.12.05"]
[Round "5.35"]
[White "Frischmann, Rick"]
[Black "Lehiste, Margus"]
[Result "1-0"]
[ECO "C42"]
[WhiteElo "2375"]
[BlackElo "2177"]
[Annotator "NA"]
[PlyCount "79"]
[EventDate "2019.12.05"]
[EventType "swiss"]
[EventCountry "EST"]
[SourceTitle "playchess.com"]
[Source "ChessBase"]
[SourceQuality "1"]
[TimeControl "900+10"]

1. e4 {[%emt 0:00:00]} e5 {[%emt 0:00:00]} 2. Nf3 {[%emt 0:00:00]} Nf6 {[%emt 0:00:00]} 3. Nxe5 {[%emt 0:00:00]} d6 {[%emt 0:00:00]} 4. Nf3 {[%emt 0:00:02]} Nxe4 {[%emt 0:00:00]} 5. Nc3 {[%emt 0:00:01]} Nxc3 {[%emt 0:00:10]} 6. dxc3 {[%emt 0:00:02]} Be7 {[%emt 0:00:46]} 7. Be3 {[%emt 0:00:02]} Nc6 {[%emt 0:00:48]} 8. Qd2 {[%emt 0:00:03]} a6 {[%emt 0:00:16]} 9. O-O-O {[%emt 0:00:06]} Be6 {[%emt 0:00:05]} 10. Kb1 {[%emt 0:00:08]} Qd7 {[%emt 0:00:09]} 11. Ng5 {[%emt 0:00:19]} Bxg5 {[%emt 0:00:56]} 12. Bxg5 {[%emt 0:00:02]} f6 {[%emt 0:00:07]} 13. Bf4 {[%emt 0:00:09]} O-O-O {[%emt 0:00:06]} 14. h4 {[%emt 0:00:03]} g6 {[%emt 0:00:50]} 15. c4 {[%emt 0:00:22]} Qf7 {[%emt 0:00:08]} 16. b3 {[%emt 0:00:03]} d5 {[%emt 0:00:05]} 17. cxd5 {[%emt 0:00:10]} Rxd5 {[%emt 0:00:10]} 18. Bd3 {[%emt 0:00:33]} Ne5 {[%emt 0:02:30]} 19. Bxe5 {[%emt 0:00:09]} Rxe5 {[%emt 0:00:09]} 20. f4 {[%emt 0:00:18]} Rd5 {[%emt 0:00:23]} 21. Qe3 {[%emt 0:01:21]} Kb8 {[%emt 0:00:19]} 22. Rde1 {[%emt 0:00:02]} Rd6 {[%emt 0:01:17]} 23. h5 {[%emt 0:00:19]} Rhd8 {[%emt 0:00:26]} 24. hxg6 {[%emt 0:00:15]} hxg6 {[%emt 0:00:01]} 25. Kb2 {[%emt 0:01:49]} a5 {[%emt 0:03:17]} 26. Qg3 {[%emt 0:00:26]} f5 {[%emt 0:01:06]} 27. Rh6 {[%emt 0:00:17]} Bd5 {[%emt 0:00:16]} 28. Qg5 {[%emt 0:03:30]} a4 {[%emt 0:01:36]} 29. Re7 {[%emt 0:00:11]} Qg8 {[%emt 0:00:07]} 30. Rhh7 {[%emt 0:06:52]} Bxb3 {[%emt 0:03:19]} 31. axb3 {[%emt 0:00:38]} Rxd3 {[%emt 0:00:03]} 32. Ref7 {[%emt 0:00:40]} Rd2 {[%emt 0:00:15]} 33. Qe7 {[%emt 0:00:10]} R2d7 {[%emt 0:00:29]} 34. Qxd7 {[%emt 0:00:38]} Rxd7 {[%emt 0:00:01]} 35. Rxd7 {[%emt 0:00:01]} axb3 {[%emt 0:00:08]} 36. Rxc7 {[%emt 0:00:02]} bxc2 {[%emt 0:00:01]} 37. Rxb7+ {[%emt 0:00:02]} Ka8 {[%emt 0:00:01]} 38. Ra7+ {[%emt 0:00:01]} Kb8 {[%emt 0:00:01]} 39. Rhb7+ {[%emt 0:00:04]} Kc8 {[%emt 0:00:01]} 40. Ra8+ {[%emt 0:00:01]} 1-0

[Event "EIRCC 2019"]
[Site "Tallinn"]
[Date "2019.12.05"]
[Round "5.36"]
[White "Lazavik, Denis"]
[Black "Krutti, Valer"]
[Result "1/2-1/2"]
[ECO "A50"]
[WhiteElo "2201"]
[BlackElo "2370"]
[Annotator "NA"]
[PlyCount "63"]
[EventDate "2019.12.05"]
[EventType "swiss"]
[EventCountry "EST"]
[SourceTitle "playchess.com"]
[Source "ChessBase"]
[SourceQuality "1"]
[TimeControl "900+10"]

1. d4 {[%emt 0:00:00]} Nf6 {[%emt 0:00:00]} 2. c4 {[%emt 0:00:00]} c6 {[%emt 0:00:00]} 3. Nf3 {[%emt 0:00:05]} d5 {[%emt 0:00:00]} 4. Qc2 {[%emt 0:00:06]} dxc4 {[%emt 0:00:02]} 5. Qxc4 {[%emt 0:00:04]} Bf5 {[%emt 0:00:02]} 6. g3 {[%emt 0:00:05]} e6 {[%emt 0:00:02]} 7. Bg2 {[%emt 0:00:04]} Nbd7 {[%emt 0:00:02]} 8. O-O {[%emt 0:00:06]} Be7 {[%emt 0:00:02]} 9. Nc3 {[%emt 0:00:06]} O-O {[%emt 0:00:02]} 10. Re1 {[%emt 0:00:07]} Bg6 {[%emt 0:00:08]} 11. Bg5 {[%emt 0:01:41]} h6 {[%emt 0:00:29]} 12. Bxf6 {[%emt 0:00:06]} Bxf6 {[%emt 0:00:06]} 13. Rad1 {[%emt 0:01:15]} Qb6 {[%emt 0:00:23]} 14. Na4 {[%emt 0:00:39]} Qa5 {[%emt 0:00:10]} 15. Qb3 {[%emt 0:00:03]} Rab8 {[%emt 0:00:59]} 16. e4 {[%emt 0:02:09]} Rfd8 {[%emt 0:01:43]} 17. Nc3 {[%emt 0:01:08]} b5 {[%emt 0:01:17]} 18. e5 {[%emt 0:01:17]} Be7 {[%emt 0:00:03]} 19. Ne4 {[%emt 0:00:21]} c5 {[%emt 0:00:54]} 20. Nxc5 {[%emt 0:03:36]} Nxc5 {[%emt 0:02:59]} 21. dxc5 {[%emt 0:00:04]} Bxc5 {[%emt 0:00:03]} 22. a3 {[%emt 0:01:56]} Qb6 {[%emt 0:00:20]} 23. Re2 {[%emt 0:00:03]} Rxd1+ {[%emt 0:02:08]} 24. Qxd1 {[%emt 0:00:04]} Rd8 {[%emt 0:00:01]} 25. Qc1 {[%emt 0:00:23]} a5 {[%emt 0:01:12]} 26. Rd2 {[%emt 0:01:02]} Rxd2 {[%emt 0:01:31]} 27. Qxd2 {[%emt 0:00:02]} Be4 {[%emt 0:00:09]} 28. Nh4 {[%emt 0:01:20]} Bb1 {[%emt 0:01:24]} 29. Qe1 {[%emt 0:00:21]} Bc2 {[%emt 0:00:12]} 30. Qd2 {[%emt 0:00:05]} Bb1 {[%emt 0:00:04]} 31. Qe1 {[%emt 0:00:01]} Bc2 {[%emt 0:00:04]} 32. Qd2 {[%emt 0:00:02]} 1/2-1/2

[Event "EIRCC 2019"]
[Site "Tallinn"]
[Date "2019.12.05"]
[Round "6.1"]
[White "Esipenko, Andrey"]
[Black "Riazantsev, Alexander"]
[Result "1/2-1/2"]
[ECO "D30"]
[WhiteElo "2590"]
[BlackElo "2594"]
[Annotator "ChessBase"]
[PlyCount "172"]
[EventDate "2019.12.05"]
[EventType "swiss"]
[EventCountry "EST"]
[SourceTitle "playchess.com"]
[Source "ChessBase"]
[SourceQuality "1"]
[TimeControl "900+10"]

1. d4 {[%emt 0:01:13]} d5 {[%emt 0:00:00]} 2. c4 {[%emt 0:00:02]} e6 {[%emt 0:00:00]} 3. Nf3 {[%emt 0:00:02]} Nf6 {[%emt 0:00:00]} 4. g3 {[%emt 0:00:02]} Bb4+ {[%emt 0:00:00]} 5. Bd2 {[%emt 0:00:02]} a5 {[%emt 0:00:00]} 6. Bg2 {[%emt 0:00:17]} O-O {[%emt 0:00:00]} 7. Qc2 {[%emt 0:00:13]} c5 {[%emt 0:00:00]} 8. cxd5 {[%emt 0:00:02]} cxd4 {[%emt 0:00:02]} 9. Nxd4 {[%emt 0:00:01]} Qb6 {[%emt 0:00:11]} 10. e3 {[%emt 0:00:01]} exd5 {[%emt 0:00:07]} 11. O-O {[%emt 0:00:10]} Nc6 {[%emt 0:00:14]} 12. Nxc6 {[%emt 0:00:02]} bxc6 {[%emt 0:00:03]} 13. Rc1 {[%emt 0:00:03]} Be6 {[%emt 0:00:25]} 14. Nc3 {[%emt 0:03:57]} c5 {[%emt 0:00:17]} 15. Na4 {[%emt 0:00:54]} Qa7 {[%emt 0:00:01]} 16. Bc3 {[%emt 0:01:14]} Bxc3 {[%emt 0:03:49]} 17. Qxc3 {[%emt 0:00:05]} Rac8 {[%emt 0:00:26]} 18. Qa3 {[%emt 0:00:25]} c4 {[%emt 0:00:42]} 19. Rd1 {[%emt 0:00:28]} h5 {[%emt 0:01:08]} 20. Rd4 {[%emt 0:00:11]} Rfd8 {[%emt 0:02:03]} 21. Rad1 {[%emt 0:00:12]} Rd7 {[%emt 0:00:01]} 22. Nc3 {[%emt 0:01:20]} Rcd8 {[%emt 0:00:43]} 23. Qa4 {[%emt 0:00:12]} Qb6 {[%emt 0:00:05]} 24. Qc2 {[%emt 0:00:08]} Qc5 {[%emt 0:01:02]} 25. R1d2 {[%emt 0:02:01]} g6 {[%emt 0:00:01]} 26. Qd1 {[%emt 0:00:16]} Kg7 {[%emt 0:00:00]} 27. h3 {[%emt 0:00:24]} Qc7 {[%emt 0:01:22]} 28. Nxd5 {[%emt 0:02:12]} Nxd5 {[%emt 0:02:43]} 29. Bxd5 {[%emt 0:00:02]} Bxh3 {[%emt 0:00:01]} 30. Qc2 {[%emt 0:01:17]} Qe5 {[%emt 0:01:26]} 31. Qc3 {[%emt 0:00:27]} Rc8 {[%emt 0:02:48]} 32. Bxc4 {[%emt 0:00:41]} Rdc7 {[%emt 0:00:19]} 33. b3 {[%emt 0:00:32]} Be6 {[%emt 0:00:02]} 34. Qd3 {[%emt 0:00:05]} Bxc4 {[%emt 0:00:06]} 35. bxc4 {[%emt 0:00:02]} Rc5 {[%emt 0:00:11]} 36. Rd5 {[%emt 0:00:43]} Qa1+ {[%emt 0:00:26]} 37. Rd1 {[%emt 0:00:02]} Qb2 {[%emt 0:00:10]} 38. Qb3 {[%emt 0:00:05]} Qf6 {[%emt 0:00:06]} 39. Rxc5 {[%emt 0:00:05]} Rxc5 {[%emt 0:00:01]} 40. Rd5 {[%emt 0:00:03]} Rc7 {[%emt 0:00:26]} 41. Qd3 {[%emt 0:00:59]} h4 {[%emt 0:00:07]} 42. gxh4 {[%emt 0:00:04]} Qxh4 {[%emt 0:00:01]} 43. Qd4+ {[%emt 0:00:20]} Qxd4 {[%emt 0:00:02]} 44. Rxd4 {[%emt 0:00:01]} Rb7 {[%emt 0:00:19]} 45. Rd5 {[%emt 0:00:06]} Rb1+ {[%emt 0:00:02]} 46. Kg2 {[%emt 0:00:02]} Rc1 {[%emt 0:00:01]} 47. Rxa5 {[%emt 0:00:11]} Rxc4 {[%emt 0:00:01]} 48. a4 {[%emt 0:00:06]} Rc2 {[%emt 0:00:28]} 49. e4 {[%emt 0:00:14]} Ra2 {[%emt 0:00:11]} 50. Kg3 {[%emt 0:00:05]} Ra3+ {[%emt 0:00:13]} 51. f3 {[%emt 0:00:01]} Kf6 {[%emt 0:00:10]} 52. Ra8 {[%emt 0:00:04]} Kg5 {[%emt 0:00:09]} 53. a5 {[%emt 0:00:17]} Kf6 {[%emt 0:00:20]} 54. a6 {[%emt 0:00:02]} Ra4 {[%emt 0:00:05]} 55. Kf4 {[%emt 0:00:20]} Ra3 {[%emt 0:00:02]} 56. a7 {[%emt 0:00:33]} Ra4 {[%emt 0:00:22]} 57. Ke3 {[%emt 0:00:02]} Kg7 {[%emt 0:00:09]} 58. Kd3 {[%emt 0:00:03]} Ra3+ {[%emt 0:00:08]} 59. Kc4 {[%emt 0:00:01]} Ra1 {[%emt 0:00:01]} 60. Kd5 {[%emt 0:00:03]} Rd1+ {[%emt 0:00:11]} 61. Kc6 {[%emt 0:00:03]} Rc1+ {[%emt 0:00:01]} 62. Kd7 {[%emt 0:00:03]} Rd1+ {[%emt 0:00:13]} 63. Ke7 {[%emt 0:00:19]} Ra1 {[%emt 0:00:01]} 64. f4 {[%emt 0:00:07]} Ra4 {[%emt 0:00:03]} 65. Kd6 {[%emt 0:00:19]} Ra6+ {[%emt 0:00:19]} 66. Kc5 {[%emt 0:00:09]} Ra1 {[%emt 0:00:02]} 67. Kd5 {[%emt 0:00:06]} Rd1+ {[%emt 0:00:10]} 68. Ke5 {[%emt 0:00:13]} Ra1 {[%emt 0:00:03]} 69. Kd4 {[%emt 0:00:23]} Rd1+ {[%emt 0:00:03]} 70. Ke3 {[%emt 0:00:02]} Ra1 {[%emt 0:00:02]} 71. Kf3 {[%emt 0:00:02]} Ra3+ {[%emt 0:00:06]} 72. Kg4 {[%emt 0:00:02]} Ra5 {[%emt 0:00:30]} 73. Kf3 {[%emt 0:00:47]} Ra3+ {[%emt 0:00:02]} 74. Ke2 {[%emt 0:00:01]} Ra2+ {[%emt 0:00:03]} 75. Kd3 {[%emt 0:00:01]} Ra1 {[%emt 0:00:03]} 76. Kd4 {[%emt 0:00:01]} Ra5 {[%emt 0:00:16]} 77. Kc4 {[%emt 0:00:03]} Ra1 {[%emt 0:00:05]} 78. Kd5 {[%emt 0:00:02]} Ra6 {[%emt 0:00:13]} 79. Kc5 {[%emt 0:00:05]} Ra1 {[%emt 0:00:04]} 80. Kd6 {[%emt 0:00:01]} Ra6+ {[%emt 0:00:17]} 81. Ke7 {[%emt 0:00:05]} Ra4 {[%emt 0:00:01]} 82. e5 {[%emt 0:00:13]} Ra6 {[%emt 0:00:23]} 83. Kd7 {[%emt 0:00:09]} Ra1 {[%emt 0:00:07]} 84. e6 {[%emt 0:00:27]} fxe6 {[%emt 0:00:03]} 85. Kxe6 {[%emt 0:00:02]} Re1+ {[%emt 0:00:07]} 86. Kd5 {[%emt 0:00:01]} Ra1 {[%emt 0:00:02]} 1/2-1/2

[Event "EIRCC 2019"]
[Site "Tallinn"]
[Date "2019.12.05"]
[Round "6.4"]
[White "Pohjala, Henri"]
[Black "Andriasian, Zaven"]
[Result "1/2-1/2"]
[ECO "A41"]
[WhiteElo "2418"]
[BlackElo "2633"]
[Annotator "RC"]
[PlyCount "129"]
[EventDate "2019.12.05"]
[EventType "swiss"]
[EventCountry "EST"]
[SourceTitle "playchess.com"]
[Source "ChessBase"]
[SourceQuality "1"]
[TimeControl "900+10"]

1. d4 {[%emt 0:05:24]} d6 {[%emt 0:00:00]} 2. g3 {[%emt 0:00:02]} g6 {[%emt 0:00:00]} 3. Bg2 {[%emt 0:00:02]} Bg7 {[%emt 0:00:05]} 4. e4 {[%emt 0:00:01]} Nf6 {[%emt 0:00:32]} 5. Ne2 {[%emt 0:00:12]} O-O {[%emt 0:00:08]} 6. O-O {[%emt 0:00:02]} Nbd7 {[%emt 0:00:05]} 7. Nbc3 {[%emt 0:00:49]} e5 {[%emt 0:00:02]} 8. h3 {[%emt 0:00:09]} Re8 {[%emt 0:00:03]} 9. Re1 {[%emt 0:00:45]} c6 {[%emt 0:00:04]} 10. Be3 {[%emt 0:00:33]} Qe7 {[%emt 0:00:06]} 11. d5 {[%emt 0:00:20]} Nb6 {[%emt 0:00:14]} 12. a4 {[%emt 0:00:30]} Qc7 {[%emt 0:01:22]} 13. Qd3 {[%emt 0:01:57]} cxd5 {[%emt 0:00:43]} 14. Nb5 {[%emt 0:00:02]} Qb8 {[%emt 0:00:29]} 15. Bxb6 {[%emt 0:03:49]} axb6 {[%emt 0:00:10]} 16. exd5 {[%emt 0:00:03]} Bf5 {[%emt 0:01:08]} 17. Qb3 {[%emt 0:00:36]} h5 {[%emt 0:00:07]} 18. Nec3 {[%emt 0:00:12]} Nd7 {[%emt 0:00:20]} 19. Re2 {[%emt 0:00:20]} Nc5 {[%emt 0:01:16]} 20. Qc4 {[%emt 0:00:01]} Qd8 {[%emt 0:00:12]} 21. b4 {[%emt 0:01:45]} Na6 {[%emt 0:00:02]} 22. Ne4 {[%emt 0:00:10]} Rc8 {[%emt 0:00:16]} 23. Qb3 {[%emt 0:00:02]} Bxe4 {[%emt 0:00:08]} 24. Rxe4 {[%emt 0:00:22]} Nc7 {[%emt 0:00:24]} 25. Bf1 {[%emt 0:00:06]} f5 {[%emt 0:00:12]} 26. Rc4 {[%emt 0:00:08]} Nxb5 {[%emt 0:00:22]} 27. Rxc8 {[%emt 0:00:02]} Qxc8 {[%emt 0:00:01]} 28. Bxb5 {[%emt 0:00:08]} Re7 {[%emt 0:00:16]} 29. Qe3 {[%emt 0:00:28]} Qc7 {[%emt 0:02:09]} 30. c4 {[%emt 0:00:09]} e4 {[%emt 0:00:25]} 31. Re1 {[%emt 0:00:28]} h4 {[%emt 0:01:10]} 32. gxh4 {[%emt 0:00:27]} Bf6 {[%emt 0:00:17]} 33. Kh1 {[%emt 0:00:14]} Qd8 {[%emt 0:01:07]} 34. Qh6 {[%emt 0:00:10]} Rg7 {[%emt 0:00:07]} 35. Rg1 {[%emt 0:00:09]} Kf7 {[%emt 0:00:01]} 36. Rg2 {[%emt 0:00:10]} Qe7 {[%emt 0:00:27]} 37. c5 {[%emt 0:00:10]} dxc5 {[%emt 0:00:16]} 38. bxc5 {[%emt 0:00:09]} Qxc5 {[%emt 0:00:43]} 39. d6 {[%emt 0:00:01]} Qxd6 {[%emt 0:00:10]} 40. Bc4+ {[%emt 0:00:01]} Ke7 {[%emt 0:00:02]} 41. Rxg6 {[%emt 0:00:07]} Rxg6 {[%emt 0:04:13]} 42. Qxg6 {[%emt 0:00:02]} Qe5 {[%emt 0:00:02]} 43. Qf7+ {[%emt 0:00:33]} Kd6 {[%emt 0:00:01]} 44. Qxb7 {[%emt 0:00:07]} Kc5 {[%emt 0:00:01]} 45. Bb5 {[%emt 0:00:15]} Bxh4 {[%emt 0:01:16]} 46. Qc6+ {[%emt 0:00:11]} Kb4 {[%emt 0:00:01]} 47. Qc4+ {[%emt 0:00:02]} Ka5 {[%emt 0:00:26]} 48. Qc1 {[%emt 0:00:02]} Be7 {[%emt 0:00:34]} 49. Bc6 {[%emt 0:00:25]} Bd6 {[%emt 0:00:23]} 50. Qd2+ {[%emt 0:00:15]} Ka6 {[%emt 0:00:01]} 51. Kg1 {[%emt 0:00:11]} Qh2+ {[%emt 0:00:36]} 52. Kf1 {[%emt 0:00:01]} Qxh3+ {[%emt 0:00:01]} 53. Ke1 {[%emt 0:00:10]} Qa3 {[%emt 0:00:07]} 54. Bb5+ {[%emt 0:00:13]} Ka7 {[%emt 0:00:01]} 55. Qd5 {[%emt 0:00:15]} e3 {[%emt 0:00:27]} 56. Qf7+ {[%emt 0:00:10]} Be7 {[%emt 0:00:01]} 57. Qxf5 {[%emt 0:00:02]} exf2+ {[%emt 0:00:19]} 58. Kxf2 {[%emt 0:00:15]} Bc5+ {[%emt 0:00:01]} 59. Kg2 {[%emt 0:00:11]} Qb2+ {[%emt 0:00:02]} 60. Kh3 {[%emt 0:00:07]} Qh8+ {[%emt 0:00:02]} 61. Kg2 {[%emt 0:00:04]} Qg7+ {[%emt 0:00:02]} 62. Kf3 {[%emt 0:00:05]} Qc3+ {[%emt 0:00:02]} 63. Qd3 {[%emt 0:00:08]} Qf6+ {[%emt 0:00:01]} 64. Ke2 {[%emt 0:00:05]} Qf2+ {[%emt 0:00:06]} 65. Kd1 {[%emt 0:00:02]} 1/2-1/2

[Event "EIRCC 2019"]
[Site "Tallinn"]
[Date "2019.12.05"]
[Round "6.5"]
[White "Lysyj, Igor"]
[Black "Sebenik, Matej"]
[Result "1/2-1/2"]
[ECO "E10"]
[WhiteElo "2599"]
[BlackElo "2504"]
[Annotator "ChessBase"]
[PlyCount "63"]
[EventDate "2019.12.05"]
[EventType "swiss"]
[EventCountry "EST"]
[SourceTitle "playchess.com"]
[Source "ChessBase"]
[SourceQuality "1"]
[TimeControl "900+10"]

1. d4 {[%emt 0:00:00]} Nf6 {[%emt 0:00:00]} 2. c4 {[%emt 0:00:00]} e6 {[%emt 0:00:00]} 3. Nf3 {[%emt 0:00:00]} d5 {[%emt 0:00:00]} 4. g3 {[%emt 0:00:00]} Bb4+ {[%emt 0:00:06]} 5. Bd2 {[%emt 0:00:00]} Be7 {[%emt 0:00:01]} 6. Bg2 {[%emt 0:00:00]} O-O {[%emt 0:00:03]} 7. O-O {[%emt 0:00:04]} c6 {[%emt 0:00:01]} 8. Qb3 {[%emt 0:00:04]} b6 {[%emt 0:00:06]} 9. Nc3 {[%emt 0:00:09]} Ba6 {[%emt 0:00:14]} 10. cxd5 {[%emt 0:00:03]} cxd5 {[%emt 0:00:02]} 11. Ne5 {[%emt 0:00:05]} Bb7 {[%emt 0:00:11]} 12. Rfc1 {[%emt 0:00:11]} Nfd7 {[%emt 0:00:11]} 13. Nd3 {[%emt 0:00:05]} Nc6 {[%emt 0:00:10]} 14. e3 {[%emt 0:00:01]} Qb8 {[%emt 0:04:04]} 15. a4 {[%emt 0:00:25]} a6 {[%emt 0:00:05]} 16. Be1 {[%emt 0:01:50]} Rc8 {[%emt 0:00:06]} 17. Na2 {[%emt 0:00:50]} Qa7 {[%emt 0:01:40]} 18. Qd1 {[%emt 0:00:21]} Na5 {[%emt 0:00:49]} 19. Bb4 {[%emt 0:01:02]} Bxb4 {[%emt 0:01:43]} 20. Naxb4 {[%emt 0:00:01]} Nc6 {[%emt 0:00:02]} 21. Nxc6 {[%emt 0:00:46]} Rxc6 {[%emt 0:01:16]} 22. Rxc6 {[%emt 0:03:05]} Bxc6 {[%emt 0:00:01]} 23. Rc1 {[%emt 0:00:04]} Rc8 {[%emt 0:00:22]} 24. Rc3 {[%emt 0:01:06]} a5 {[%emt 0:00:53]} 25. e4 {[%emt 0:02:03]} dxe4 {[%emt 0:02:41]} 26. Bxe4 {[%emt 0:00:11]} Bb7 {[%emt 0:00:03]} 27. Rxc8+ {[%emt 0:03:12]} Bxc8 {[%emt 0:00:02]} 28. Qc2 {[%emt 0:00:30]} Qb8 {[%emt 0:01:20]} 29. Qc6 {[%emt 0:00:08]} Nf6 {[%emt 0:00:05]} 30. Ne5 {[%emt 0:00:05]} Ba6 {[%emt 0:00:00]} 31. Bf3 {[%emt 0:00:51]} Qd8 {[%emt 0:00:09]} 32. Qc3 {[%emt 0:01:15]} 1/2-1/2

[Event "EIRCC 2019"]
[Site "Tallinn"]
[Date "2019.12.05"]
[Round "6.6"]
[White "Sanal, Vahap"]
[Black "Lintchevski, Daniil"]
[Result "0-1"]
[ECO "B23"]
[WhiteElo "2597"]
[BlackElo "2515"]
[Annotator "ChessBase"]
[PlyCount "108"]
[EventDate "2019.12.05"]
[EventType "swiss"]
[EventCountry "EST"]
[SourceTitle "playchess.com"]
[Source "ChessBase"]
[SourceQuality "1"]
[TimeControl "900+10"]

1. e4 {[%emt 0:00:56]} c5 {[%emt 0:00:00]} 2. Nc3 {[%emt 0:00:01]} e6 {[%emt 0:00:00]} 3. Nf3 {[%emt 0:00:05]} Nf6 {[%emt 0:00:00]} 4. e5 {[%emt 0:00:21]} Nd5 {[%emt 0:00:00]} 5. Ne4 {[%emt 0:01:19]} f5 {[%emt 0:00:14]} 6. Nc3 {[%emt 0:00:34]} Ne7 {[%emt 0:01:05]} 7. d4 {[%emt 0:00:05]} cxd4 {[%emt 0:00:35]} 8. Nb5 {[%emt 0:03:30]} Ng6 {[%emt 0:01:29]} 9. h4 {[%emt 0:04:41]} Nc6 {[%emt 0:00:32]} 10. Nd6+ {[%emt 0:01:04]} Bxd6 {[%emt 0:00:06]} 11. exd6 {[%emt 0:00:02]} Qa5+ {[%emt 0:01:02]} 12. c3 {[%emt 0:00:01]} Qd5 {[%emt 0:01:33]} 13. cxd4 {[%emt 0:01:47]} Qxd6 {[%emt 0:00:24]} 14. h5 {[%emt 0:00:01]} Nge7 {[%emt 0:00:42]} 15. h6 {[%emt 0:00:02]} g6 {[%emt 0:00:44]} 16. Be2 {[%emt 0:00:04]} b6 {[%emt 0:00:24]} 17. O-O {[%emt 0:00:14]} Bb7 {[%emt 0:00:21]} 18. Bg5 {[%emt 0:00:41]} O-O {[%emt 0:00:05]} 19. d5 {[%emt 0:00:39]} Nxd5 {[%emt 0:00:33]} 20. Bc4 {[%emt 0:00:17]} f4 {[%emt 0:01:00]} 21. Bxd5 {[%emt 0:00:55]} Qxd5 {[%emt 0:00:06]} 22. Qxd5 {[%emt 0:00:03]} exd5 {[%emt 0:00:01]} 23. Rad1 {[%emt 0:00:05]} d6 {[%emt 0:00:48]} 24. Nd4 {[%emt 0:00:17]} Nxd4 {[%emt 0:01:41]} 25. Rxd4 {[%emt 0:00:02]} f3 {[%emt 0:00:01]} 26. Rc1 {[%emt 0:00:38]} fxg2 {[%emt 0:00:26]} 27. Rc7 {[%emt 0:00:29]} Rf7 {[%emt 0:00:01]} 28. Rxf7 {[%emt 0:00:01]} Kxf7 {[%emt 0:00:01]} 29. Rf4+ {[%emt 0:00:01]} Kg8 {[%emt 0:01:20]} 30. Kxg2 {[%emt 0:00:09]} Rf8 {[%emt 0:00:40]} 31. Rd4 {[%emt 0:00:10]} Re8 {[%emt 0:00:19]} 32. Kg3 {[%emt 0:00:20]} Re4 {[%emt 0:00:11]} 33. Rd3 {[%emt 0:00:11]} d4 {[%emt 0:00:08]} 34. f3 {[%emt 0:00:05]} Re5 {[%emt 0:00:13]} 35. Bf6 {[%emt 0:00:11]} Re3 {[%emt 0:00:24]} 36. Rxe3 {[%emt 0:00:11]} dxe3 {[%emt 0:00:01]} 37. Bc3 {[%emt 0:00:29]} Kf7 {[%emt 0:01:55]} 38. Kf4 {[%emt 0:00:02]} e2 {[%emt 0:00:01]} 39. Ke3 {[%emt 0:00:00]} Ba6 {[%emt 0:00:02]} 40. Kf4 {[%emt 0:00:41]} Ke6 {[%emt 0:00:13]} 41. Bd2 {[%emt 0:00:04]} Bc4 {[%emt 0:00:03]} 42. a3 {[%emt 0:00:17]} Kd5 {[%emt 0:00:23]} 43. Kg5 {[%emt 0:00:02]} Kd4 {[%emt 0:01:01]} 44. Kf6 {[%emt 0:00:03]} Bd3 {[%emt 0:00:04]} 45. f4 {[%emt 0:00:16]} Be4 {[%emt 0:00:14]} 46. Kg7 {[%emt 0:00:20]} g5 {[%emt 0:00:00]} 47. fxg5 {[%emt 0:00:01]} Kd3 {[%emt 0:00:06]} 48. Be1 Kc2 {[%emt 0:00:18]} 49. Kf6 {[%emt 0:00:05]} Kd1 {[%emt 0:00:19]} 50. Bg3 {[%emt 0:00:02]} e1=Q {[%emt 0:00:03]} 51. Bxe1 {[%emt 0:00:01]} Kxe1 {[%emt 0:00:01]} 52. Ke6 {[%emt 0:00:02]} d5 {[%emt 0:00:01]} 53. g6 {[%emt 0:00:10]} Bxg6 {[%emt 0:00:01]} 54. Kxd5 {[%emt 0:00:01]} Kd2 {[%emt 0:00:02]} 0-1

[Event "EIRCC 2019"]
[Site "Tallinn"]
[Date "2019.12.05"]
[Round "6.7"]
[White "Kulaots, Kaido"]
[Black "Gretarsson, Helgi Ass"]
[Result "1-0"]
[ECO "C60"]
[WhiteElo "2544"]
[BlackElo "2421"]
[Annotator "ChessBase"]
[PlyCount "65"]
[EventDate "2019.12.05"]
[EventType "swiss"]
[EventCountry "EST"]
[SourceTitle "playchess.com"]
[Source "ChessBase"]
[SourceQuality "1"]
[TimeControl "900+10"]

1. e4 {[%emt 0:00:00]} e5 {[%emt 0:00:00]} 2. Nf3 {[%emt 0:00:00]} Nc6 {[%emt 0:00:00]} 3. Bb5 {[%emt 0:00:00]} g6 {[%emt 0:00:00]} 4. d4 {[%emt 0:00:09]} exd4 {[%emt 0:00:00]} 5. c3 {[%emt 0:00:09]} dxc3 {[%emt 0:00:26]} 6. Nxc3 {[%emt 0:00:02]} Bg7 {[%emt 0:00:02]} 7. Bg5 {[%emt 0:00:12]} Nce7 {[%emt 0:00:18]} 8. O-O {[%emt 0:01:59]} h6 {[%emt 0:02:13]} 9. Bh4 {[%emt 0:00:16]} Nf6 {[%emt 0:01:46]} 10. e5 {[%emt 0:01:14]} Nh7 {[%emt 0:00:31]} 11. Qc2 {[%emt 0:04:45]} g5 {[%emt 0:04:13]} 12. Bg3 {[%emt 0:00:07]} Nf8 {[%emt 0:00:16]} 13. Rfe1 {[%emt 0:01:08]} Ne6 {[%emt 0:00:06]} 14. Rad1 {[%emt 0:00:41]} a6 {[%emt 0:00:53]} 15. Bd3 {[%emt 0:00:18]} b5 {[%emt 0:00:10]} 16. Ne4 {[%emt 0:00:47]} Nc6 {[%emt 0:02:31]} 17. Nf6+ {[%emt 0:01:18]} Bxf6 {[%emt 0:00:37]} 18. exf6 {[%emt 0:00:02]} Qxf6 {[%emt 0:01:01]} 19. Bxc7 {[%emt 0:01:21]} Bb7 {[%emt 0:00:11]} 20. Bd6 {[%emt 0:00:32]} Rc8 {[%emt 0:00:46]} 21. Qd2 {[%emt 0:00:24]} g4 {[%emt 0:00:09]} 22. Ne5 {[%emt 0:00:08]} Ncd4 {[%emt 0:00:01]} 23. Be4 {[%emt 0:01:41]} Bxe4 {[%emt 0:00:35]} 24. Rxe4 {[%emt 0:00:02]} Rc2 {[%emt 0:00:06]} 25. Qe1 {[%emt 0:00:01]} Nf5 {[%emt 0:02:00]} 26. Nxg4 {[%emt 0:00:48]} Qg5 {[%emt 0:00:08]} 27. Be5 {[%emt 0:00:11]} d5 {[%emt 0:00:08]} 28. Rxd5 {[%emt 0:00:35]} O-O {[%emt 0:00:16]} 29. Nf6+ {[%emt 0:00:22]} Kh8 {[%emt 0:00:03]} 30. Rd1 {[%emt 0:00:12]} Rfc8 {[%emt 0:00:07]} 31. h4 {[%emt 0:00:07]} Qc1 {[%emt 0:00:19]} 32. Kh2 {[%emt 0:00:24]} Qxb2 33. Bxb2 1-0